Workbook

Sheet Basisbewerkingen
A1: Aantal studenten per opleiding
A2: Academiejaar 2008-2009
A3: Studierichting | B3: 1°jaar | C3: 2°jaar | D3: 3°jaar | E3: Totaal
A4: Ba SW | B4: 135 | C4: 90 | D4: 87 | E4: =SUM(B4:D4) -> 312
A5: Ba TP | B5: 168 | C5: 110 | D5: 100 | E5: =SUM(B5:D5) -> 378
A6: BaO | B6: 156 | C6: 99 | D6: 86 | E6: 341
A7: BaMV | B7: 89 | C7: 35 | D7: 30 | E7: 154
A8: Totaal | B8: =SUM(B4:B7) -> 548 | C8: =SUM(C4:C7) -> 334 | D8: 303 | E8: =SUM(E4:E7) -> 1185
A14: Aantal studenten per opleiding
A15: Academiejaar 2008-2009
A16: Studierichting | B16: 1°jaar | C16: 2°jaar | D16: 3°jaar | E16: Totaal
A17: Ba SW | B17: =B4/$B$8 -> 0.246350365 | C17: =C4/$C$8 -> 0.2694610778 | D17: =D4/$D$8 -> 0.2871287129 | E17: =E4/$E$8 -> 0.2632911392
A18: Ba TP | B18: =B5/$B$8 -> 0.3065693431 | C18: =C5/$C$8 -> 0.3293413174 | D18: =D5/$D$8 -> 0.3300330033 | E18: =E5/$E$8 -> 0.3189873418
A19: BaO | B19: 0.2846715328 | C19: 0.2964071856 | D19: 0.2838283828 | E19: 0.2877637131
A20: BaMV | B20: 0.1624087591 | C20: 0.1047904192 | D20: 0.09900990099 | E20: 0.1299578059
A21: Totaal | B21: 1 | C21: 1 | D21: 1 | E21: 1

Sheet Kalender
A1: DECEMBER
A2: maandag | B2: 2008-12-01
A3: dinsdag | B3: 2008-12-02
A4: woensdag | B4: 2008-12-03
A5: donderdag | B5: 2008-12-04
A6: vrijdag | B6: 2008-12-05
A7: zaterdag | B7: 2008-12-06
A8: zondag | B8: 2008-12-07
A9: maandag | B9: 2008-12-08
A10: dinsdag | B10: 2008-12-09
A11: woensdag | B11: 2008-12-10
A12: donderdag | B12: 2008-12-11
A13: vrijdag | B13: 2008-12-12
A14: zaterdag | B14: 2008-12-13
A15: zondag | B15: 2008-12-14
A16: maandag | B16: 2008-12-15
A17: dinsdag | B17: 2008-12-16
A18: woensdag | B18: 2008-12-17
A19: donderdag | B19: 2008-12-18
A20: vrijdag | B20: 2008-12-19 | C20: einde lesperiode 1
A21: zaterdag | B21: 2008-12-20
A22: zondag | B22: 2008-12-21
A23: maandag | B23: 2008-12-22 | C23: kerstvakantie Week 1
A24: dinsdag | B24: 2008-12-23
A25: woensdag | B25: 2008-12-24
A26: donderdag | B26: 2008-12-25
A27: vrijdag | B27: 2008-12-26
A28: zaterdag | B28: 2008-12-27
A29: zondag | B29: 2008-12-28
A30: maandag | B30: 2008-12-29 | C30: Kerstvakantie Week 2
A31: dinsdag | B31: 2008-12-30
A32: woensdag | B32: 2008-12-31
A33: donderdag | B33: 2009-01-01
A34: vrijdag | B34: 2009-01-02
A35: zaterdag | B35: 2009-01-03
A36: zondag | B36: 2009-01-04
A37: maandag | B37: 2009-01-05 | C37: Blokweek
A38: dinsdag | B38: 2009-01-06
A39: woensdag | B39: 2009-01-07
A40: donderdag | B40: 2009-01-08
A41: vrijdag | B41: 2009-01-09
A42: zaterdag | B42: 2009-01-10
A43: zondag | B43: 2009-01-11
A44: maandag | B44: 2009-01-12 | C44: Start examenperiode 1
A45: dinsdag | B45: 2009-01-13
A46: woensdag | B46: 2009-01-14
A47: donderdag | B47: 2009-01-15
A48: vrijdag | B48: 2009-01-16
A49: zaterdag | B49: 2009-01-17
A50: zondag | B50: 2009-01-18
A51: maandag | B51: 2009-01-19
A52: dinsdag | B52: 2009-01-20
A53: woensdag | B53: 2009-01-21
A54: donderdag | B54: 2009-01-22
A55: vrijdag | B55: 2009-01-23
A56: zaterdag | B56: 2009-01-24
A57: zondag | B57: 2009-01-25
A58: maandag | B58: 2009-01-26
A59: dinsdag | B59: 2009-01-27
A60: woensdag | B60: 2009-01-28
A61: donderdag | B61: 2009-01-29
A62: vrijdag | B62: 2009-01-30 | C62: inhaaldag

Sheet Opmaak
A1: invoer | B1: resultaat
A2: 0.6 | B2: 0.6
A3: 0.6 | B3: 0.6
A4: -3 | B4: -3
A5: 10000 | B5: 10000
A6: 10000 | B6: 10000
A7: 0.1 | B7: 0.1
A8: 0.25 | B8: 0.25
A9: 25 | B9: 25 stuks
A10: 50 | B10: 50 stuks
A11: =NOW() -> 2009-11-09T17:00:28.420 | B11: =NOW() -> 2009-11-09T17:00:28.420
A12: =NOW() -> 2009-11-09T17:00:28.420 | B12: 2009-11-09T17:00:28.420
A13: 2009-11-09T17:00:28.420 | B13: 40126.70866
A14: 2009-11-09T17:00:28.420 | B14: 2009-11-09T17:00:28.420
A15: 2009-11-09T17:00:28.420 | B15: =NOW() -> 2009-11-09T17:00:28.420
